fUST/lending_fUST_20250720
["ID","MTS","AMOUNT","RATE_DAILY","PERIOD"]
[373454012,1753014654337,-460.0,0.00019792,2]
[373454014,1753014654347,-151.0,0.0001983,2]
[373454016,1753014654357,-3665.59419369,0.00019831,2]
[373454018,1753014654367,-460.0,0.00019865,2]
[373454020,1753014654377,-560.69,0.00019865,2]
[373454022,1753014654386,-460.0,0.00019865,2]
[373454024,1753014654396,-460.0,0.00019865,2]
[373454026,1753014654405,-460.0,0.00019865,2]
[373454028,1753014654414,-460.0,0.00019869,2]
[373454030,1753014654424,-2684.6,0.00019869,2]
[373454032,1753014654433,-460.0,0.00019869,2]
[373454034,1753014654443,-460.0,0.00019869,2]
[373454036,1753014654452,-500.0,0.00019899,2]
[373454038,1753014654461,-460.0,0.00019915,2]
[373454040,1753014654470,-460.0,0.00019916,2]
[373454042,1753014654480,-595.21,0.00019916,2]
[373454044,1753014654489,-1000.0,0.00019921,2]
[373454046,1753014654499,-511.01879794,0.00019921,2]
[373454048,1753014654509,-1000.0,0.00019921,2]
[373454050,1753014654519,-360.0,0.00019965,2]
[373454052,1753014654528,-201.964236,0.00019969,2]
[373454054,1753014654538,-201.964236,0.00019969,2]
[373454056,1753014654547,-460.0,0.00019969,2]
[373454058,1753014654557,-487.07,0.00019971,2]
[373454060,1753014654566,-151.0,0.00019972,2]
[373454062,1753014654575,-517.171336,0.00019972,2]
[373454064,1753014654584,-517.171336,0.00019972,2]
[373454066,1753014654594,-636.14,0.00019972,2]
[373454068,1753014654603,-460.0,0.00019972,2]
[373454070,1753014654612,-549.69277651,0.00019972,2]
[373454072,1753014654622,-1000.0,0.00019996,2]
[373454074,1753014654634,-2020.02247365,0.0002,2]
[373454076,1753014654645,-14346.20478963,0.0002,2]
[373454078,1753014654654,-3194.4852885,0.0002,2]
[373454080,1753014654663,-362.71658097,0.0002,2]
[373454082,1753014654672,-71021.39958333,0.0002,5]
[373454083,1753014654683,-35692.89985663,0.0002,2]
[373454085,1753014654692,-1302.68,0.00020019,2]
[373454087,1753014654702,-460.0,0.00020066,2]
[373454090,1753014654714,-3665.59419369,0.00020072,2]
[373454091,1753014654724,-2722.73,0.00020088,2]
[373454093,1753014654733,-201.964236,0.00020088,2]
[373454095,1753014654742,-201.964236,0.00020088,2]
[373454097,1753014654752,-2000.0,0.00020126,2]
[373454099,1753014654761,-4000.0,0.00020131,4]
[373454101,1753014654770,-460.0,0.00020139,2]
[373454103,1753014654779,-560.69,0.00020139,2]
[373454105,1753014654789,-460.0,0.00020139,2]
[373454107,1753014654798,-460.0,0.00020139,2]
[373454109,1753014654807,-460.0,0.00020139,2]
[373454111,1753014654816,-460.0,0.00020143,2]
[373454113,1753014654826,-2684.6,0.00020143,2]
[373454115,1753014654835,-400.50037595,0.00020143,2]
[373454117,1753014654845,-2000.0,0.00020188,2]
[373454119,1753014654855,-460.0,0.00020189,2]
[373454121,1753014654864,-460.0,0.0002019,2]
[373454123,1753014654873,-595.21,0.0002019,2]
[373454125,1753014654883,-151.0,0.000202,4]
[373454127,1753014654893,-1000.0,0.00020221,2]
[373454129,1753014654902,-460.0,0.00020243,2]
[373454131,1753014654912,-487.07,0.00020245,2]
[373454133,1753014654922,-636.14,0.00020246,2]
[373454135,1753014654931,-460.0,0.00020246,2]
[373454137,1753014654940,-1000.0,0.00020264,2]
[373454139,1753014654950,-1302.68,0.00020293,2]
[373454141,1753014654959,-500.0,0.00020313,2]
[373454143,1753014654968,-3665.59419369,0.00020314,3]
[373454145,1753014654978,-1500.0,0.00020335,2]
[373454147,1753014654987,-460.0,0.0002034,2]
[373454149,1753014654996,-476.42619115,0.000204,3]
[373454151,1753014655008,-12615.16111038,0.000204,3]
[373454153,1753014655019,-160.0,0.000204,3]
[373454155,1753014655028,-214.5637056,0.000204,3]
[373454157,1753014655038,-460.0,0.00020413,2]
[373454159,1753014655047,-560.69,0.00020413,2]
[373454161,1753014655056,-460.0,0.00020413,2]
[373454163,1753014655065,-460.0,0.00020417,2]
[373454165,1753014655074,-2684.6,0.00020417,2]
[373454167,1753014655083,-151.0,0.00020421,2]
[373454169,1753014655093,-517.171336,0.00020421,2]
[373454171,1753014655102,-517.171341,0.00020421,2]
[373454173,1753014655111,-460.0,0.00020463,2]
[373454175,1753014655121,-460.0,0.00020464,2]
[373454177,1753014655130,-595.21,0.00020464,2]
[373454179,1753014655139,-389.20231297,0.00020468,2]
[373454181,1753014655149,-472.07520401,0.00020473,2]
[373454183,1753014655158,-158.48796273,0.00020473,2]
[373454185,1753014655168,-500.0,0.00020473,2]
[373454187,1753014655177,-274.06147548,0.00020473,2]
[373454189,1753014655186,-38711.31421274,0.000205,2]
[373454412,1753014657396,630.759758,0.00013699,2]
[373454432,1753014657572,-460.0,0.00016858,2]
[373454434,1753014657582,-460.0,0.00016858,2]
[373454436,1753014657592,-460.0,0.00016958,2]
[373454438,1753014657601,-460.0,0.00017052,2]
[373454440,1753014657611,-460.0,0.00017132,2]
[373454442,1753014657620,-460.0,0.00017406,2]
[373454444,1753014657630,-460.0,0.00017951,2]
[373454446,1753014657641,-630.759758,0.00020187,2]
[373454448,1753014657650,-59971.68154556,0.000205,2]
[373454454,1753014657695,1500.0,0.00018082,7]
[373454459,1753014657738,1500.0,0.00018082,7]
[373454464,1753014657777,1500.0,0.00018082,7]
[373454469,1753014657814,825.719406,0.00018082,7]
[373454684,1753014659966,3573.82216782,0.000165,2]
[373454687,1753014659988,1426.17783218,0.000165,2]
[373458218,1753014818193,10012.6706162,0.00015869,2]
[373458219,1753014848554,1151.53359049,0.00016187,2]
[373458220,1753014848974,575.76679524,0.00016255,2]
[373458221,1753014862763,5000.0,0.000165,2]
[373458222,1753014871132,1833.85116589,0.00015882,2]
[373458223,1753014871154,7899.11072931,0.00015882,2]
[373458224,1753014878649,5000.0,0.000165,2]
[373458225,1753014895177,5000.0,0.000165,2]
[373458226,1753014899000,199.4704144,0.00015843,2]
[373458227,1753014911177,1901.41885629,0.000165,2]
[373458228,1753014911201,3098.58114371,0.000165,2]
[373458233,1753014926382,5000.0,0.000165,2]
[373458241,1753014933331,2294.8483613,0.00015826,2]
[373458242,1753014934108,388.1997588,0.0001642,2]
[373458256,1753014942216,5000.0,0.000165,2]
[373458260,1753014958460,4218.37073619,0.000165,2]
[373458261,1753014958488,781.62926381,0.000165,2]
[373458264,1753014973878,5000.0,0.000165,2]
[373458265,1753014989768,5000.0,0.000165,2]
[373458268,1753014992910,170.98261317,0.0001642,2]
[373458269,1753015006135,5000.0,0.000165,2]
[373458270,1753015021526,4047.38812302,0.000165,2]
[373458271,1753015021548,952.61187698,0.000165,2]
[373458272,1753015037390,5000.0,0.000165,2]
[373458273,1753015050008,1263.1374514,0.00015943,2]
[373458274,1753015054916,5000.0,0.000165,2]
[373458275,1753015070362,5000.0,0.000165,2]
[373458277,1753015087304,2784.25067162,0.000165,2]
[373458278,1753015087326,2215.74932838,0.000165,2]
[373458279,1753015104388,5000.0,0.000165,2]
[373458280,1753015120163,5000.0,0.000165,2]
[373458282,1753015131574,1032.829424,0.00015739,2]
[373458283,1753015138197,5000.0,0.000165,2]
[373458284,1753015151445,608.60766432,0.00016024,2]
[373458285,1753015155531,1142.8135833,0.000165,2]
[373458286,1753015155555,3857.1864167,0.000165,2]
[373458287,1753015172642,5000.0,0.000165,2]
[373458288,1753015187911,5000.0,0.000165,2]
[373458289,1753015203544,5000.0,0.000165,2]
[373458290,1753015204246,1142.8135833,0.00015762,2]
[373458291,1753015204270,8857.1864167,0.00015762,2]
[373458292,1753015219185,5000.0,0.000165,2]
[373458295,1753015232250,2749.44625612,0.00016451,2]
[373458296,1753015236054,3393.36732718,0.000165,2]
[373458297,1753015236079,1606.63267282,0.000165,2]
[373458298,1753015251853,5000.0,0.000165,2]
[373458299,1753015252756,3411.9,0.00027397,120]
[373458300,1753015268274,5000.0,0.000165,2]
[373458301,1753015286570,5000.0,0.000165,2]
[373458302,1753015302070,1587.9796601,0.00015761,2]
[373458303,1753015302497,1805.38766708,0.000165,2]
[373458304,1753015302520,3194.61233292,0.000165,2]
[373458305,1753015318389,-300.0,0.00016518,2]
[373458306,1753015318412,-1200.0,0.00016518,2]
[373458307,1753015318436,-300.0,0.00016518,2]
[373458308,1753015318468,-529.0,0.00016518,2]
[373458309,1753015318494,-460.0,0.00016519,2]
[373458310,1753015318515,-400.0,0.00016519,2]
[373458311,1753015318545,-460.0,0.00016519,2]
[373458312,1753015318568,-460.0,0.00016519,2]
[373458313,1753015318588,-460.0,0.00016519,2]
[373458314,1753015318609,-460.0,0.00016519,2]
[373458315,1753015318632,-460.0,0.00016519,2]
[373458316,1753015318654,-460.0,0.00016519,2]
[373458317,1753015318676,-460.0,0.00016519,2]
[373458318,1753015318697,-460.0,0.00016519,2]
[373458319,1753015318720,-460.0,0.00016519,2]
[373458320,1753015318741,-460.0,0.00016519,2]
[373458321,1753015318927,-460.0,0.00016519,2]
[373458322,1753015318949,-448.84,0.00016519,2]
[373458323,1753015318971,-237.41573751,0.00016519,2]
[373458324,1753015318993,-460.0,0.00016519,2]
[373458325,1753015319014,-460.0,0.00016519,2]
[373458326,1753015319034,-460.0,0.00016519,2]
[373458327,1753015319058,-460.0,0.00016519,2]
[373458328,1753015319079,-460.0,0.00016519,2]
[373458329,1753015319101,-460.0,0.00016519,2]
[373458330,1753015319121,-13304.74426249,0.0001652,2]
[373458331,1753015319155,5000.0,0.000165,2]
[373458332,1753015333861,5000.0,0.000165,2]
[373458333,1753015339961,166.0,0.00016438,2]
[373458334,1753015346683,3346.013091,0.00015814,2]
[373458335,1753015350607,3293.37457608,0.000165,2]
[373458336,1753015350629,1706.62542392,0.000165,2]
[373458337,1753015366046,5000.0,0.000165,2]
[373458338,1753015368822,13293.37457608,0.00015814,2]
[373458339,1753015368846,20000.0,0.00015814,2]
[373458341,1753015368869,16764.79035432,0.00015814,2]
[373458342,1753015373899,3235.20964568,0.000165,2]
[373458343,1753015373922,978.98644708,0.000165,2]
[373458344,1753015374602,207.6516708,0.00015814,2]
[373458345,1753015383332,5000.0,0.000165,2]
[373458346,1753015399234,5000.0,0.000165,2]
[373458347,1753015408456,394.18512114,0.00016419,2]
[373458348,1753015408860,394.18512112,0.00016427,2]
[373458349,1753015409239,394.18512112,0.00016435,2]
[373458350,1753015409616,394.18512112,0.00016443,2]
[373458351,1753015410127,394.18512112,0.00016451,2]
[373458352,1753015415192,5000.0,0.000165,2]
[373458353,1753015430647,1842.4362765,0.000165,2]
[373458354,1753015430669,3157.5637235,0.000165,2]
[373458356,1753015446516,5000.0,0.000165,2]
[373458358,1753015453554,768.250981,0.00016023,2]
[373458359,1753015453934,544.40730789,0.00016024,2]
[373458360,1753015454248,228.919965,0.00016253,2]
[373458361,1753015464940,5000.0,0.000165,2]
[373458362,1753015474730,5300.85802261,0.00015774,2]
[373458363,1753015474751,20000.0,0.00015774,2]
[373458364,1753015474773,20000.0,0.00015774,2]
[373458365,1753015474795,20000.0,0.00015774,2]
[373458366,1753015474818,20000.0,0.00015774,2]
[373458367,1753015474840,20000.0,0.00015774,2]
[373458368,1753015474863,20000.0,0.00015774,2]
[373458369,1753015474886,18911.78386429,0.00015774,2]
[373458370,1753015480509,1088.21613571,0.000165,2]
[373458371,1753015480535,3911.78386429,0.000165,2]
[373458372,1753015496021,5000.0,0.000165,2]
[373458373,1753015503112,21088.21613571,0.000165,2]
[373458374,1753015503137,170.78386429,0.000165,2]
[373458375,1753015506689,211.6796142,0.00015777,2]
[373458376,1753015508387,183.87644133,0.00016419,2]
[373458377,1753015511519,5000.0,0.000165,2]
[373458378,1753015526867,5000.0,0.000165,2]
[373458380,1753015543117,5000.0,0.000165,2]
[373458381,1753015556783,155.83281161,0.00016126,2]
[373458382,1753015558885,5000.0,0.000165,2]
[373458383,1753015566019,4153.1490032,0.0001578,2]
[373458386,1753015575836,5000.0,0.000165,2]
[373458391,1753015584341,124.67826537,0.000165,2]
[373458392,1753015584363,1121.22308352,0.000165,2]
[373458395,1753015592455,5000.0,0.000165,2]
[373458396,1753015598400,155.0,0.000165,2]
[373458397,1753015608461,5000.0,0.000165,2]
[373458398,1753015618033,2694.79209737,0.00016419,2]
[373458399,1753015619171,16028.98481911,0.00015744,2]
[373458400,1753015619194,8416.30329959,0.00015744,2]
[373458401,1753015624582,5000.0,0.000165,2]
[373458492,1753015639907,5000.0,0.000165,2]
[373458493,1753015646211,239.91579337,0.0001,2]
[373458494,1753015651629,191.71817156,0.00016418,2]
[373458495,1753015655838,5000.0,0.000165,2]
[373458496,1753015660962,3869.2532332,0.0001573,2]
[373458497,1753015672257,2282.80950228,0.000165,2]
[373458498,1753015672324,2717.19049772,0.000165,2]
[373458500,1753015680513,341.27944416,0.00016418,2]
[373458501,1753015688600,5000.0,0.000165,2]
[373458503,1753015690259,21941.53005812,0.00015712,2]
[373458504,1753015690281,8617.56521628,0.00015712,2]
[373458505,1753015704521,5000.0,0.000165,2]
[373458506,1753015719810,5000.0,0.000165,2]
[373458509,1753015732121,251.51769431,0.00016356,2]
[373458514,1753015735127,5000.0,0.000165,2]
[373458516,1753015753401,5000.0,0.000165,2]
[373458517,1753015756247,311.90149683,0.00016023,2]
[373458520,1753015769213,819.01559258,0.000165,2]
[373458521,1753015769238,4180.98440742,0.000165,2]
[373458522,1753015784651,5000.0,0.000165,2]
[373458523,1753015800578,5000.0,0.000165,2]
[373458524,1753015803147,1186.41380125,0.000165,2]
[373458526,1753015808961,2357.94308519,0.00016419,2]
[373458528,1753015816113,5000.0,0.000165,2]
[373458533,1753015830921,1909.48,0.0002739,120]
[373458574,1753015832479,5000.0,0.000165,2]
[373458669,1753015834000,-1200.0,0.00016517,2]
[373458670,1753015834010,-462.2572154,0.00016518,2]
[373458671,1753015834020,-460.0,0.00016518,2]
[373458672,1753015834030,-460.0,0.00016518,2]
[373458673,1753015834039,-460.0,0.00016518,2]
[373458674,1753015834048,-469.85151392,0.00016518,2]
[373458675,1753015834058,-460.0,0.00016518,2]
[373458676,1753015834067,-460.0,0.00016518,2]
[373458677,1753015834077,-460.0,0.00016518,2]
[373458678,1753015834086,-460.0,0.00016518,2]
[373458679,1753015834095,-460.0,0.00016518,2]
[373458680,1753015834104,-460.0,0.00016518,2]
[373458681,1753015834114,-460.0,0.00016518,2]
[373458683,1753015834123,-460.0,0.00016518,2]
[373458685,1753015834132,-460.0,0.00016518,2]
[373458686,1753015834142,-500.0,0.00016519,2]
[373458687,1753015834151,-273.02493693,0.00016519,2]
[373458688,1753015834160,-460.0,0.00016519,2]
[373458689,1753015834169,-273.21416359,0.00016519,2]
[373458690,1753015834179,-460.0,0.00016519,2]
[373458691,1753015834189,-460.0,0.00016519,2]
[373458692,1753015834198,-460.0,0.00016519,2]
[373458693,1753015834210,-460.0,0.00016519,2]
[373458694,1753015834221,-404.29388804,0.00016519,2]
[373458695,1753015834231,-460.0,0.00016519,2]
[373458696,1753015834241,-460.0,0.00016519,2]
[373458697,1753015834250,-460.0,0.00016519,2]
[373458698,1753015834260,-500.0,0.00016519,2]
[373458699,1753015834270,-460.0,0.00016519,2]
[373458700,1753015834279,-500.0,0.00016519,2]
[373458701,1753015834291,-460.0,0.00016519,2]
[373458702,1753015834300,-460.0,0.00016519,2]
[373458703,1753015834310,-462.99488661,0.00016519,2]
[373458704,1753015834319,-460.0,0.00016519,2]
[373458705,1753015834329,-508.2,0.00016519,2]
[373458706,1753015834338,-460.0,0.00016519,2]
[373458707,1753015834349,-460.90525251,0.00016519,2]
[373458708,1753015834358,-460.84118514,0.00016519,2]
[373458709,1753015834368,-460.0,0.00016519,2]
[373458710,1753015834488,-460.0,0.00016519,2]
[373458711,1753015834498,-208.51890481,0.00016519,2]
[373458712,1753015834507,-606.29942718,0.00016519,2]
[373458713,1753015834516,-464.58377306,0.00016519,2]
[373458714,1753015834525,-460.0,0.00016519,2]
[373458715,1753015834536,-461.06709247,0.00016519,2]
[373458716,1753015834545,-460.0,0.00016519,2]
[373458717,1753015834555,-460.0,0.00016519,2]
[373458718,1753015834564,-460.0,0.00016519,2]
[373458719,1753015834573,-460.0,0.00016519,2]
[373458720,1753015834582,-460.0,0.00016519,2]
[373458721,1753015834593,-460.0,0.00016519,2]
[373458722,1753015834602,-460.0,0.00016519,2]
[373458723,1753015834612,-460.0,0.00016519,2]
[373458724,1753015834621,-460.0,0.00016519,2]
[373458725,1753015834630,-460.0,0.00016519,2]
[373458726,1753015834639,-460.0,0.00016519,2]
[373458727,1753015834649,-460.0,0.00016519,2]
[373458728,1753015834658,-460.0,0.00016519,2]
[373458729,1753015834667,-460.0,0.00016519,2]
[373458730,1753015834677,-465.64436908,0.00016519,2]
[373458731,1753015834687,-460.0,0.00016519,2]
[373458732,1753015834696,-460.0,0.00016519,2]
[373458733,1753015834706,-460.0,0.00016519,2]
[373458734,1753015834716,-460.0,0.00016519,2]
[373458735,1753015834725,-460.0,0.00016519,2]
[373458736,1753015834735,-460.0,0.00016519,2]
[373458737,1753015834745,-460.0,0.00016519,2]
[373458738,1753015834754,-243.20813341,0.00016519,2]
[373458739,1753015834763,-413.57358301,0.00016519,2]
[373458740,1753015834772,-460.0,0.00016519,2]
[373458741,1753015834781,-460.0,0.00016519,2]
[373458742,1753015834790,-463.46964991,0.00016519,2]
[373458743,1753015834800,-460.0,0.00016519,2]
[373458744,1753015834809,-460.0,0.00016519,2]
[373458745,1753015834818,-460.0,0.00016519,2]
[373458746,1753015834828,-460.0,0.00016519,2]
[373458747,1753015834838,-460.0,0.00016519,2]
[373458748,1753015834847,-460.0,0.00016519,2]
[373458749,1753015834856,-460.0,0.00016519,2]
[373458750,1753015834866,-460.0,0.00016519,2]
[373458751,1753015834875,-460.0,0.00016519,2]
[373458752,1753015834884,-460.0,0.00016519,2]
[373458753,1753015834894,-462.28200181,0.00016519,2]
[373458754,1753015834903,-460.0,0.00016519,2]
[373458755,1753015834912,-460.0,0.00016519,2]
[373458756,1753015834921,-462.20882336,0.00016519,2]
[373458757,1753015834938,-460.0,0.00016519,2]
[373458758,1753015834952,-460.0,0.00016519,2]
[373458759,1753015834963,-460.0,0.00016519,2]
[373458760,1753015834975,-460.0,0.00016519,2]
[373458761,1753015834985,-460.0,0.00016519,2]
[373458762,1753015834996,-460.0,0.00016519,2]
[373458763,1753015835007,-460.0,0.00016519,2]
[373458764,1753015835018,-521.9263345,0.00016519,2]
[373458765,1753015835030,-460.0,0.00016519,2]
[373458766,1753015835040,-460.0,0.00016519,2]
[373458767,1753015835051,-460.0,0.00016519,2]
[373458768,1753015835060,-460.0,0.00016519,2]
[373458769,1753015835071,-460.0,0.00016519,2]
[373458770,1753015835081,-460.0,0.00016519,2]
[373458771,1753015835093,-460.0,0.00016519,2]
[373458772,1753015835104,-460.0,0.00016519,2]
[373458773,1753015835114,-460.0,0.00016519,2]
[373458774,1753015835123,-460.0,0.00016519,2]
[373458775,1753015835134,-460.0,0.00016519,2]
[373458776,1753015835144,-460.0,0.00016519,2]
[373458777,1753015835156,-460.0,0.00016519,2]
[373458778,1753015835167,-460.0,0.00016519,2]
[373458779,1753015835176,-460.0,0.00016519,2]
[373458780,1753015835186,-460.0,0.00016519,2]
[373458781,1753015835196,-460.0,0.00016519,2]
[373458782,1753015835206,-460.0,0.00016519,2]
[373458783,1753015835221,-460.0,0.00016519,2]
[373458784,1753015835231,-460.0,0.00016519,2]
[373458785,1753015835241,-542.07391562,0.00016519,2]
[373458786,1753015835252,-460.0,0.00016519,2]
[373458787,1753015835262,-460.0,0.00016519,2]
[373458788,1753015835272,-460.0,0.00016519,2]
[373458789,1753015835282,-460.0,0.00016519,2]
[373458790,1753015835295,-460.0,0.00016519,2]
[373458791,1753015835305,-460.0,0.00016519,2]
[373458792,1753015835316,-460.0,0.00016519,2]
[373458793,1753015835327,-460.0,0.00016519,2]
[373458794,1753015835337,-460.0,0.00016519,2]
[373458795,1753015835348,-460.0,0.00016519,2]
[373458796,1753015835358,-460.0,0.00016519,2]
[373458797,1753015835368,-460.0,0.00016519,2]
[373458798,1753015835379,-460.03843944,0.00016519,2]
[373458799,1753015835388,-460.0,0.00016519,2]
[373458800,1753015835397,-460.0,0.00016519,2]
[373458801,1753015835407,-460.0,0.00016519,2]
[373458802,1753015835416,-460.0,0.00016519,2]
[373458803,1753015835426,-460.0,0.00016519,2]
[373458804,1753015835435,-460.0,0.00016519,2]
[373458805,1753015835445,-595.0,0.00016519,2]
[373458806,1753015835455,-460.0,0.00016519,2]
[373458807,1753015835464,-460.0,0.00016519,2]
[373458808,1753015835474,-412.25185024,0.00016519,2]
[373458809,1753015835483,-460.0,0.00016519,2]
[373458810,1753015835494,-460.0,0.00016519,2]
[373458811,1753015835503,-460.0,0.00016519,2]
[373458812,1753015835513,-460.0,0.00016519,2]
[373458813,1753015835522,-460.61746917,0.00016519,2]
[373458814,1753015835532,-460.0,0.00016519,2]
[373458815,1753015835541,-460.0,0.00016519,2]
[373458816,1753015835551,-460.0,0.00016519,2]
[373458817,1753015835562,-460.0,0.00016519,2]
[373458818,1753015835572,-460.0,0.00016519,2]
[373458819,1753015835582,-460.0,0.00016519,2]
[373458820,1753015835592,-460.0,0.00016519,2]
[373458821,1753015835601,-460.0,0.00016519,2]
[373458822,1753015835611,-460.0,0.00016519,2]
[373458823,1753015835621,-460.0,0.00016519,2]
[373458824,1753015835630,-460.0,0.00016519,2]
[373458825,1753015835640,-237.07492919,0.00016519,2]
[373458826,1753015835650,-460.0,0.00016519,2]
[373458827,1753015835661,-460.0,0.00016519,2]
[373458828,1753015835671,-460.0,0.00016519,2]
[373458829,1753015835680,-460.0,0.00016519,2]
[373458830,1753015835690,-310.0,0.00016519,2]
[373458831,1753015835700,-460.0,0.00016519,2]
[373458832,1753015835709,-460.0,0.00016519,2]
[373458833,1753015835720,-460.0,0.00016519,2]
[373458834,1753015835730,-460.0,0.00016519,2]
[373458835,1753015835740,-460.0,0.00016519,2]
[373458836,1753015835751,-460.0,0.00016519,2]
[373458837,1753015835760,-460.0,0.00016519,2]
[373458838,1753015835770,-460.0,0.00016519,2]
[373458839,1753015835782,-460.0,0.00016519,2]
[373458840,1753015835792,-460.9834125,0.00016519,2]
[373458841,1753015835802,-460.0,0.00016519,2]
[373458842,1753015835811,-460.0,0.00016519,2]
[373458843,1753015835820,-460.0,0.00016519,2]
[373458844,1753015835830,-460.0,0.00016519,2]
[373458845,1753015835840,-460.0,0.00016519,2]
[373458846,1753015835852,-460.0,0.00016519,2]
[373458847,1753015835862,-460.0,0.00016519,2]
[373458848,1753015835872,-460.0,0.00016519,2]
[373458849,1753015835882,-466.88458515,0.00016519,2]
[373458850,1753015835892,-460.0,0.00016519,2]
[373458851,1753015835902,-460.0,0.00016519,2]
[373458852,1753015835911,-460.0,0.00016519,2]
[373458853,1753015835921,-460.0,0.00016519,2]
[373458854,1753015835931,-460.0,0.00016519,2]
[373458855,1753015835941,-460.0,0.00016519,2]
[373458856,1753015835951,-460.0,0.00016519,2]
[373458857,1753015835961,-460.0,0.00016519,2]
[373458858,1753015835971,-461.50845097,0.00016519,2]
[373458859,1753015835981,-460.0,0.00016519,2]
[373458860,1753015835991,-370.41306049,0.00016519,2]
[373458861,1753015836005,-461.63461809,0.00016519,2]
[373458862,1753015836015,-365.67973378,0.00016519,2]
[373458863,1753015836025,-460.0,0.00016519,2]
[373458864,1753015836035,-460.0,0.00016519,2]
[373458865,1753015836044,-460.0,0.00016519,2]
[373458866,1753015836057,-460.0,0.00016519,2]
[373458867,1753015836066,-460.0,0.00016519,2]
[373458868,1753015836077,-460.0,0.00016519,2]
[373458869,1753015836087,-460.0,0.00016519,2]
[373458870,1753015836097,-11591.84973355,0.0001652,2]
[373458871,1753015836107,-202.33542456,0.00016551,2]
[373458872,1753015836116,-255.0,0.0001661,2]
[373458873,1753015836127,-331.87462006,0.00016615,2]
[373458874,1753015836137,-624.1957832,0.00016758,2]
[373458875,1753015836147,-17355.64786057,0.00016758,2]
[373458876,1753015836157,-552.88,0.00016783,3]
[373458877,1753015836167,-500.0,0.00016792,2]
[373458878,1753015836180,-458.44000311,0.00016792,2]
[373458879,1753015836190,-460.0,0.00016792,2]
[373458880,1753015836201,-460.0,0.00016792,2]
[373458881,1753015836213,-460.0,0.00016792,2]
[373458882,1753015836229,-460.0,0.00016792,2]
[373458883,1753015836238,-460.0,0.00016792,2]
[373458884,1753015836250,-460.0,0.00016792,2]
[373458885,1753015836261,-460.0,0.00016792,2]
[373458886,1753015836271,-460.0,0.00016792,2]
[373458887,1753015836281,-460.0,0.00016792,2]
[373458888,1753015836291,-460.0,0.00016792,2]
[373458889,1753015836301,-460.0,0.00016792,2]
[373458890,1753015836311,-460.0,0.00016792,2]
[373458891,1753015836322,-460.0,0.00016792,2]
[373458892,1753015836331,-1106.67,0.00016792,2]
[373458893,1753015836341,-460.0,0.00016792,2]
[373458894,1753015836350,-460.0,0.00016792,2]
[373458895,1753015836361,-460.0,0.00016792,2]
[373458896,1753015836371,-460.0,0.00016792,2]
[373458897,1753015836380,-460.0,0.00016792,2]
[373458898,1753015836390,-165.98017348,0.00016792,2]
[373458899,1753015836400,-460.0,0.00016792,2]
[373458900,1753015836410,-460.0,0.00016792,2]
[373458901,1753015836420,-460.0,0.00016792,2]